bitfinex-derivatives/quotes_SOLF0:USTF0_20250228
["timestamp","ask_amount","ask_price","bid_price","bid_amount"]
[1740737980955,0.05851031,131.35,131.33,0.04934567]
[1740737981257,7.6174,131.34,131.33,0.04934567]
[1740737981456,0.05851031,131.35,131.33,0.04934567]
[1740737981949,7.6174,131.34,131.33,0.04934567]
[1740737982157,0.05851031,131.35,131.33,0.04934567]
[1740737982348,7.67591031,131.35,131.33,0.04934567]
[1740737983154,7.6174,131.34,131.33,0.04934567]
[1740737985562,7.67561031,131.35,131.33,0.04934567]
[1740737985857,0.05851031,131.35,131.33,0.04934567]
[1740737988356,7.6174,131.34,131.33,0.04934567]
[1740737988951,0.05851031,131.35,131.33,0.04934567]
[1740737989155,7.67561031,131.35,131.33,0.04934567]
[1740737989659,7.6174,131.34,131.33,0.04934567]
[1740737994461,0.05851031,131.35,131.33,0.04934567]
[1740737994663,7.67561031,131.35,131.33,0.04934567]
[1740737995861,0.05851031,131.35,131.33,0.04934567]
[1740737996355,7.67541031,131.35,131.33,0.04934567]
[1740737996563,0.05851031,131.35,131.33,0.04934567]
[1740738001366,0.05851031,131.35,131.33,7.66724567]
[1740738005565,0.05851031,131.35,131.34,7.6174]
[1740738008674,0.05851031,131.35,131.33,0.04934567]
[1740738010172,7.6174,131.34,131.33,0.04934567]
[1740738011773,0.05851031,131.35,131.33,0.04934567]
[1740738011774,7.67561031,131.35,131.33,0.04934567]
[1740738011968,0.05851031,131.35,131.27,5.7854]
[1740738012168,7.6186,131.32,131.27,5.7854]
[1740738012365,7.6186,131.32,131.27,1.9499]
[1740738012570,20.3986,131.32,131.27,1.9499]
[1740738013173,0.0561958,131.31,131.28,0.05325647]
[1740738013472,7.6203,131.29,131.28,0.05325647]
[1740738013672,1.9243958,131.31,131.21,3.7538]
[1740738013869,3.8395,131.31,131.21,3.7538]
[1740738014176,3.8395,131.31,131.18,84.46487865]
[1740738014375,1.34284569,131.3,131.18,88.28577865]
[1740738014675,7.6245,131.22,131.18,84.46487865]
[1740738014874,12.78,131.21,131.18,84.46487865]
[1740738015072,12.78,131.21,131.19,42.19510121]
[1740738015374,7.6256,131.2,131.19,36.11130121]
[1740738015973,7.6261,131.19,131.18,71.75387865]
[1740738016664,7.6261,131.19,131.11,5.827]
[1740738016665,7.6261,131.19,131.13,42.3868439]
[1740738017375,0.05279231,131.17,131.15,0.05121054]
[1740738024570,0.05279231,131.17,131.11,5.827]
[1740738024974,7.68009231,131.17,131.11,5.827]
[1740738025773,0.05279231,131.17,131.13,0.04981311]
[1740738026976,7.68049231,131.17,131.13,0.04981311]
[1740738027277,0.05279231,131.17,131.13,0.04981311]
[1740738027577,7.68049231,131.17,131.13,0.04981311]
[1740738028076,0.05279231,131.17,131.13,0.04981311]
[1740738028277,0.05279231,131.17,131.04,3.8187]
[1740738028469,159.90275039,131.2,131.05,1.8976]
[1740738028674,7.6313,131.11,131.05,1.8976]
[1740738028977,12.78,131.1,131.05,1.8976]
[1740738029174,20.4114,131.1,131.05,1.8976]
[1740738029376,12.78,131.1,131.05,1.8976]
[1740738029574,0.05647011,131.09,131.06,0.05075817]
[1740738030379,0.05647011,131.09,130.96,5.8075]
[1740738030569,12.78,131.1,130.96,5.8075]
[1740738030777,7.6326,131.08,130.96,5.8075]
[1740738030974,12.78,131.1,130.96,5.8075]
[1740738031579,0.05520576,131.04,131.02,0.05216698]
[1740738031774,12.78,131.1,130.96,5.8075]
[1740738031971,12.78,131.1,130.97,1.52706726]
[1740738032375,12.78,131.1,131.03,7.6351]
[1740738032576,12.78,131.1,131.04,3.943]
[1740738032777,12.8,131.11,131.04,3.943]
[1740738033074,0.0581806,131.08,131.06,0.04807199]
[1740738033576,7.6907806,131.08,131.06,0.04807199]
[1740738033778,0.0581806,131.08,131.06,0.04807199]
[1740738036282,7.6344,131.05,130.98,1.9452]
[1740738036476,12.8,131.04,130.98,3.784]
[1740738036877,12.8,131.04,130.98,5.6792]
[1740738037073,12.8,131.04,130.98,13.3175]
[1740738037374,0.05239866,131.02,131.0,0.05777784]
[1740738038978,12.8,131.04,131.0,0.05777784]
[1740738039581,12.8,131.04,131.01,7.6366]
[1740738040383,20.4324,131.09,131.03,7.6355]
[1740738040977,7.6316,131.1,130.98,5.6792]
[1740738041287,12.8,131.11,130.98,5.6792]
[1740738041482,7.6328,131.08,131.03,7.635]
[1740738041682,0.05378005,131.05,131.03,7.68928327]
[1740738042182,0.05378005,131.05,131.03,0.05428327]
[1740738043289,12.8,131.16,131.03,0.05428327]
[1740738043582,1.9878,131.18,131.0,12.8]
[1740738043781,9.6151,131.18,131.11,7.6307]
[1740738043980,84.46487865,131.24,131.0,12.8]
[1740738044285,12.8,131.22,131.0,12.8]
[1740738044582,9.013e-05,131.11,131.09,0.05337202]
[1740738044885,7.6256,131.2,131.14,7.6289]
[1740738045077,12.8,131.22,131.0,12.8]
[1740738045275,12.8,131.22,131.01,2.92896063]
[1740738045478,12.8,131.22,131.02,1.5264845]
[1740738045686,0.05245205,131.13,131.1,0.05107195]
[1740738046079,12.8,131.15,131.02,1.5264845]
[1740738046287,0.05722252,131.13,131.1,0.05710752]
[1740738046486,12.8,131.15,131.02,1.5264845]
[1740738046786,0.05580597,131.13,131.1,0.05298911]
[1740738046987,7.6292,131.14,131.02,1.5264845]
[1740738047288,0.04961795,131.09,131.07,0.049871]
[1740738047484,12.8,131.15,131.07,0.049871]
[1740738047879,12.8,131.15,131.09,7.6315]
[1740738048084,12.8,131.15,131.1,3.683]
[1740738048286,1.9966,131.22,131.11,7.6306]
[1740738048481,7.6269,131.18,131.1,3.683]
[1740738048685,0.05824766,131.18,131.15,0.05851158]
[1740738049089,12.8,131.21,131.15,0.05851158]
[1740738049388,0.05046971,131.18,131.15,0.00383079]
[1740738050680,7.67726971,131.18,131.15,0.00383079]
[1740738050884,0.05046971,131.18,131.15,0.00383079]
[1740738051890,7.6279,131.16,131.15,0.00383079]
[1740738053890,7.6275,131.17,131.15,0.00383079]
[1740738054090,0.05046971,131.18,131.15,0.00383079]
[1740738054690,0.05046971,131.18,131.06,2.0047]
[1740738054989,23.35810983,131.21,131.07,3.8013]
[1740738055193,7.6289,131.15,131.08,7.6322]
[1740738055888,7.6289,131.15,131.1,0.05120817]
[1740738056094,0.05051441,131.13,131.1,0.05120817]
[1740738058194,0.05051441,131.13,131.1,7.68250817]
[1740738058398,0.05051441,131.13,131.1,0.05120817]
[1740738058599,10.55810983,131.2,131.1,0.05120817]
[1740738058898,18.18400983,131.2,131.13,7.6293]
[1740738059092,18.18400983,131.2,131.07,167.22180117]
[1740738059396,30.96400983,131.2,131.14,7.6285]
[1740738059600,7.6269,131.18,131.07,167.22180117]
[1740738059797,7.67765058,131.18,131.16,0.05684207]
[1740738060093,7.6269,131.18,131.12,7.63]
[1740738060301,0.05063453,131.18,131.16,0.05593738]
[1740738060500,23.33810983,131.2,131.13,7.6294]
[1740738060694,0.04813333,131.18,131.16,0.04989604]
[1740738062800,7.67523333,131.18,131.16,0.04989604]
[1740738063203,0.04813333,131.18,131.16,0.04989604]
[1740738063396,7.6273,131.17,131.16,0.04989604]
[1740738063793,0.04813333,131.18,131.07,167.22180117]
[1740738063997,7.629,131.15,131.08,7.6324]
[1740738064200,35.71,131.2,131.07,1.9552]
[1740738064401,35.71,131.2,131.06,2.0047]
[1740738064699,3.30697619,131.19,131.03,4.0261]
[1740738064903,1.33587619,131.18,131.03,4.0261]
[1740738065105,0.0556059,131.12,131.1,0.05279739]
[1740738065304,12.78,131.11,131.02,1.5264845]
[1740738065504,3.9424,131.1,131.02,1.5264845]
[1740738065700,7.633,131.08,131.02,1.5264845]
[1740738065901,3.9424,131.1,131.02,1.5264845]
[1740738066402,0.056121,131.07,131.05,0.04991555]
[1740738066597,0.056121,131.07,131.02,1.5264845]
[1740738067103,7.6343,131.05,131.02,1.5264845]
[1740738067299,0.056121,131.07,131.02,1.5264845]
[1740738067703,0.056121,131.07,131.03,0.05801107]
[1740738068401,0.056121,131.07,131.02,1.5264845]
[1740738068806,7.6347,131.05,131.02,1.5264845]
[1740738069007,12.78,131.04,131.02,1.5264845]
[1740738069197,12.78,131.04,130.91,3.8001]
[1740738069401,7.6373,131.0,130.93,7.6413]
[1740738069597,0.05693024,130.99,130.96,0.05762919]
[1740738069803,0.05693024,130.99,130.92,1.9268]
[1740738070003,0.05693024,130.99,130.96,0.05370834]
[1740738070307,0.05693024,130.99,130.84,131.68582201]
[1740738070507,7.6391,130.97,130.88,7.6438]
[1740738070704,12.78,130.96,130.86,5.7343]
[1740738071109,12.78,130.96,130.89,7.6431]
[1740738071310,12.78,130.96,130.86,5.7343]
[1740738071506,0.05586303,130.94,130.91,0.05004912]
[1740738074508,73.96371615,132.23,130.91,0.05004912]
[1740738074509,220.4,131.04,130.91,0.05004912]
[1740738074905,220.4,131.04,130.86,5.7343]
[1740738075107,220.4,131.04,130.87,12.8]
[1740738075512,7.6356,131.03,130.95,7.6399]
[1740738075711,0.05365025,130.97,130.94,0.05210635]
[1740738075908,7.6356,131.03,130.87,12.8]
[1740738076102,0.05095832,130.97,130.94,0.05575994]
[1740738076507,7.6356,131.03,130.87,12.8]
[1740738076804,7.6362,131.02,130.96,7.6395]
[1740738077209,220.4,131.04,130.87,12.8]
[1740738077513,220.4,131.04,130.88,1.52811735]
[1740738077713,0.04960269,130.97,130.94,0.05800142]
[1740738078111,7.6378,130.99,130.93,7.6408]
[1740738078311,0.05604887,130.97,130.94,0.04843071]
[1740738078711,7.6378,130.99,130.92,7.6418]
[1740738078914,0.05474968,130.97,130.94,0.05665892]
[1740738079312,220.4,131.04,130.88,164.94861852]
[1740738079515,0.05007003,130.97,130.94,0.05637073]
[1740738079918,220.4,131.04,130.88,164.94861852]
[1740738080113,0.05180666,130.97,130.94,0.05294062]
[1740738080417,220.4,131.04,130.9,7.6429]
[1740738080718,0.0570137,130.97,130.94,0.05829286]
[1740738081016,7.6382,130.99,130.91,7.6424]
[1740738081211,220.4,131.04,130.88,164.94861852]
[1740738081415,0.05850829,130.97,130.94,0.0556819]
[1740738081712,220.4,131.04,130.89,1.8779]
[1740738081910,0.04887049,130.97,130.89,1.8779]
[1740738082116,0.04887049,130.97,130.94,0.05089943]
[1740738082317,220.4,131.04,130.94,0.05089943]
[1740738082615,0.05016354,130.97,130.92,7.6418]
[1740738082817,7.6376,131.0,130.98,0.05049443]
[1740738083113,7.69156285,131.0,130.89,1.8779]
[1740738083514,12.8,131.02,130.89,1.8779]
[1740738083814,12.8,131.02,130.97,7.6385]
[1740738084211,0.05224338,131.01,130.98,0.05685217]
[1740738088120,0.05224338,131.01,131.0,7.6372]
[1740738088419,12.8,131.08,130.99,5.751]
[1740738088615,20.433,131.08,131.01,7.6362]
[1740738088822,12.8,131.08,131.01,7.6362]
[1740738089115,12.8,131.08,130.99,5.751]
[1740738089521,0.05774641,131.05,131.02,0.05175646]
[1740738091317,0.05774641,131.05,130.9,3.9008]
[1740738091517,7.637,131.01,130.9,167.32130117]
[1740738092118,20.437,131.01,130.94,7.6403]
[1740738092421,0.05525615,130.99,130.96,0.05538812]
[1740738094425,0.05525615,130.99,130.96,7.69448812]
[1740738094622,0.05525615,130.99,130.96,0.05538812]
[1740738096028,12.8,131.01,130.96,0.05538812]
[1740738096223,12.8,131.06,130.98,7.638]
[1740738096423,7.6356,131.03,130.98,7.638]
[1740738096923,12.8,131.05,130.99,7.6377]
[1740738097122,12.8,131.05,130.97,3.7788]
[1740738097323,0.05252397,131.03,131.01,0.05823906]
[1740738097929,0.05252397,131.03,131.01,7.69483906]
[1740738098328,0.05252397,131.03,131.01,0.05823906]
[1740738099627,7.636,131.02,131.01,0.05823906]
[1740738099827,0.05252397,131.03,131.01,0.05823906]
[1740738103232,0.05252397,131.03,130.88,9.13711735]
[1740738103427,12.8,131.05,130.89,14.98250061]
[1740738103627,12.8,131.05,130.9,1.52788388]
[1740738104030,10.55810983,131.08,130.9,1.52788388]
[1740738104235,10.55810983,131.08,130.91,15.2849]
[1740738104435,0.05184928,131.0,130.98,0.05620331]
[1740738104635,7.6344,131.05,130.98,0.05620331]
[1740738104834,42.23243932,131.08,130.92,164.94815164]
[1740738105134,42.23243932,131.08,130.93,1.52753379]
[1740738105724,0.0559611,131.02,130.99,0.04875003]
[1740738105925,7.6369,131.01,130.93,1.52753379]
[1740738106125,0.05023765,131.02,130.99,0.05274443]
[1740738106325,42.23243932,131.08,130.93,164.94803496]
[1740738106536,0.05036572,131.02,130.99,0.05659605]
[1740738106838,7.6358,131.03,130.93,164.94803496]
[1740738107037,0.05057743,131.02,130.99,0.04928191]
[1740738107233,42.23243932,131.09,130.93,164.94803496]
[1740738107436,0.05118948,131.02,130.99,0.04951443]
[1740738107639,65.16243932,131.09,130.93,1.52753379]
[1740738107837,0.05330247,131.02,130.99,0.05057302]
[1740738108038,12.8,131.03,130.96,7.6391]
[1740738108338,0.05628116,131.02,130.99,0.05605494]
[1740738108533,20.4358,131.03,130.99,0.05605494]
[1740738108739,0.04891071,131.02,130.99,0.05605494]
[1740738109937,0.04891071,131.02,131.0,7.6371]
[1740738110139,0.04891071,131.02,130.99,0.05605494]
[1740738111641,0.04891071,131.02,131.01,7.6366]
[1740738112542,0.04891071,131.02,131.01,5.90049742]
[1740738114044,7.6335,131.07,131.02,7.6357]
[1740738114349,7.6344,131.05,131.0,5.7144]
[1740738115349,0.0503009,131.04,131.01,0.05557455]
[1740738115948,0.0503009,131.04,131.02,7.6356]
[1740738116343,0.0503009,131.04,131.01,0.05557455]
[1740738116748,0.0503009,131.04,131.03,7.6355]
[1740738117443,160.0469327,131.1,131.05,7.6339]
[1740738117645,160.0469327,131.1,131.0,5.7144]
[1740738117947,7.6321,131.09,131.04,7.6345]
[1740738118444,7.6329,131.08,131.05,0.05734251]
[1740738118643,7.68206223,131.08,131.05,0.05734251]
[1740738119246,0.04916223,131.08,131.05,0.05734251]
[1740738119949,7.68186223,131.08,131.05,0.05734251]
[1740738120147,0.04916223,131.08,131.05,0.05734251]
[1740738124654,7.68216223,131.08,131.05,0.05734251]
[1740738126354,0.04916223,131.08,131.05,0.05734251]
[1740738126656,0.04916223,131.08,131.06,7.6332]
[1740738126857,0.04916223,131.08,131.05,0.05734251]
[1740738128256,7.68176223,131.08,131.05,0.05734251]
[1740738128657,0.04916223,131.08,131.05,0.05734251]
[1740738129358,7.68166223,131.08,131.05,0.05734251]
[1740738129761,0.04916223,131.08,131.05,0.05734251]
[1740738131965,0.04916223,131.08,131.07,7.6331]
[1740738132360,1.8697,131.16,131.09,7.6318]
[1740738132564,42.23243932,131.13,131.09,7.6318]
[1740738132758,42.23243932,131.13,131.02,12.78]
[1740738132961,42.23243932,131.13,131.1,7.6308]
[1740738133559,42.28143315,131.13,131.1,7.68661659]
[1740738134363,49.91133315,131.13,131.1,0.05581659]
[1740738134660,42.28143315,131.13,131.1,0.05581659]
[1740738134869,0.04899383,131.13,131.1,0.05581659]
[1740738135362,7.6308,131.11,131.1,0.05581659]
[1740738136567,24.1649,131.12,131.1,0.05581659]
[1740738136761,12.78,131.12,131.1,0.05581659]
[1740738136972,0.04899383,131.13,131.1,0.05581659]
[1740738140171,0.04899383,131.13,131.1,7.68721659]
[1740738140663,0.04899383,131.13,131.1,0.05581659]
[1740738141266,7.6303,131.12,131.1,0.05581659]
[1740738141471,0.04899383,131.13,131.04,3.7734]
[1740738141673,7.6312,131.11,131.04,3.7734]
[1740738142171,7.6308,131.11,131.03,1.933]
[1740738142765,0.05012533,131.08,131.06,0.05250181]
[1740738142963,12.78,131.16,131.06,0.05250181]
[1740738143168,12.78,131.16,131.08,7.6321]
[1740738143373,7.6288,131.15,131.04,3.975]
[1740738143772,7.6288,131.15,131.09,7.6316]
[1740738144266,0.05191201,131.13,131.11,0.05449201]
[1740738145671,0.05191201,131.13,131.11,7.68529201]
[1740738146869,0.05191201,131.13,131.12,7.6302]
[1740738147475,7.6257,131.2,131.15,7.6279]
[1740738147974,7.6251,131.21,131.16,7.6275]
[1740738148470,7.6251,131.21,131.12,3.7197]
[1740738148664,0.05385735,131.2,131.17,0.05258552]
[1740738151376,7.67955735,131.2,131.17,0.05258552]
[1740738151577,0.05385735,131.2,131.17,0.05258552]
[1740738152867,7.6232,131.24,131.19,7.6256]
[1740738153278,16.7046,131.26,131.18,3.8203]
[1740738153479,7.625,131.21,131.18,3.8203]
[1740738153672,16.7046,131.26,131.13,156.29465373]
[1740738153872,16.7046,131.26,131.13,130.74162038]
[1740738154177,0.05455188,131.21,131.18,0.05679282]
[1740738154376,0.05455188,131.21,131.1,3.8208]
[1740738154678,7.6259,131.2,131.14,7.68506523]
[1740738154874,0.05289169,131.17,131.14,7.68506523]
[1740738155077,0.05289169,131.17,131.1,3.8208]
[1740738155274,0.05289169,131.17,131.16,7.6279]
[1740738155576,16.7046,131.26,131.14,0.05647631]
[1740738155778,7.6237,131.24,131.18,7.6264]
[1740738156481,16.7046,131.26,131.1,134.56242038]
[1740738156680,0.05554909,131.22,131.2,0.04957423]
[1740738156874,16.7046,131.26,131.11,132.26705703]
[1740738157074,0.04849728,131.22,131.2,7.68368629]
[1740738157276,0.04849728,131.22,131.2,7.6252]
[1740738157474,0.04849728,131.22,131.2,0.0554032]
[1740738158780,0.04849728,131.22,131.2,7.6809032]
[1740738158978,0.04849728,131.22,131.2,0.0554032]
[1740738159480,0.04849728,131.22,131.21,7.625]
[1740738159679,0.04849728,131.22,131.2,0.0554032]
[1740738160680,0.04849728,131.22,131.21,7.625]
[1740738161074,1.9692,131.28,131.2,0.0554032]
[1740738161075,12.78,131.29,131.2,0.0554032]
[1740738161277,7.6205,131.29,131.15,207.44]
[1740738161472,7.6205,131.29,131.16,5.53715513]
[1740738161682,7.6205,131.29,131.25,7.6223]
[1740738162082,3.9139,131.32,131.17,132.26635926]
[1740738162281,7.67976295,131.28,131.26,0.05457375]
[1740738162577,0.05846295,131.28,131.17,132.26635926]
[1740738162781,0.05846295,131.28,131.26,0.04942297]
[1740738163081,12.78,131.31,131.23,7.6233]
[1740738163282,7.6215,131.27,131.26,0.04878972]
[1740738163483,7.6215,131.27,131.22,7.6244]
[1740738163677,7.6215,131.27,131.25,0.05739317]
[1740738163878,0.04798069,131.26,131.17,132.26635926]
[1740738164079,7.6215,131.27,131.21,7.67596267]
[1740738164281,0.04848745,131.23,131.21,7.67596267]
[1740738164480,12.78,131.31,131.21,7.6245]
[1740738164777,0.05824816,131.23,131.22,7.6243]
[1740738164976,7.6213,131.28,131.22,7.6243]
[1740738165182,7.67708199,131.28,131.22,7.6243]
[1740738165481,0.05578199,131.28,131.24,0.05339056]
[1740738165679,7.6215,131.27,131.24,0.05339056]
[1740738166085,7.67688199,131.28,131.24,0.05339056]
[1740738167183,0.05578199,131.28,131.25,7.6222]
[1740738167385,0.05578199,131.28,131.24,0.05339056]
[1740738167684,7.67708199,131.28,131.24,0.05339056]
[1740738168179,0.05578199,131.28,131.24,0.05339056]
[1740738169685,7.6218,131.27,131.24,0.05339056]
[1740738170486,7.67698199,131.28,131.24,0.05339056]
[1740738171181,0.05578199,131.28,131.24,0.05339056]
[1740738171881,0.05578199,131.28,131.24,7.67619056]
[1740738172488,0.05578199,131.28,131.24,0.05339056]
[1740738172786,7.67678199,131.28,131.24,0.05339056]
[1740738172982,0.05578199,131.28,131.24,0.05339056]
[1740738173183,0.05578199,131.28,131.24,7.67629056]
[1740738173583,0.05578199,131.28,131.24,0.05339056]
[1740738173782,0.05578199,131.28,131.25,7.6222]
[1740738174086,0.05578199,131.28,131.24,0.05339056]
[1740738174285,0.05578199,131.28,131.24,7.67619056]
[1740738175981,7.67708199,131.28,131.24,0.05339056]
[1740738178089,7.6224,131.26,131.24,0.05339056]
[1740738181687,0.05578199,131.28,131.24,0.05339056]
[1740738181887,7.6217,131.27,131.24,0.05339056]
[1740738182391,0.05578199,131.28,131.24,0.05339056]
[1740738182693,0.05578199,131.28,131.17,132.26635926]
[1740738182891,7.6236,131.24,131.17,132.26635926]
[1740738183088,7.6236,131.24,131.17,1.52473888]
[1740738183690,0.05190594,131.22,131.19,0.05462725]
[1740738184386,7.6254,131.21,131.19,0.05462725]
[1740738184589,3.89730594,131.22,131.19,0.05462725]
[1740738184983,7.6256,131.2,131.19,0.05462725]
[1740738185587,7.6265,131.19,131.13,2.0008]
[1740738185982,3.8454,131.22,131.13,9.6301]
[1740738186187,7.6272,131.18,131.13,2.0008]
[1740738186692,3.8454,131.22,131.09,3.786]
[1740738186693,3.8454,131.22,131.11,7.6306]
[1740738186892,0.05287441,131.17,131.14,0.05435776]
[1740738187087,12.76,131.16,131.09,5.7945]
[1740738187288,20.3883,131.16,131.14,0.0532004]
[1740738187595,0.05607077,131.14,131.09,13.4263]
[1740738188193,0.05607077,131.14,131.1,0.05623812]
[1740738188689,0.05607077,131.14,131.11,7.6304]
[1740738188889,0.05607077,131.14,131.1,0.05623812]
[1740738189292,0.05607077,131.14,131.12,7.6298]
[1740738189487,0.05607077,131.14,131.1,0.05623812]
[1740738189687,0.05607077,131.14,131.12,7.6297]
[1740738189894,0.05607077,131.14,131.1,0.05623812]
[1740738190393,7.6256,131.2,131.1,0.05623812]
[1740738190789,7.6256,131.2,131.09,5.7945]
[1740738190989,2.0212,131.21,131.09,5.7945]
[1740738191593,0.05058969,131.16,131.14,0.05285775]
[1740738191799,7.6269,131.18,131.14,0.05285775]
[1740738191993,0.05387204,131.16,131.14,0.05285775]
[1740738192189,7.6266,131.19,131.14,0.05285775]
[1740738192494,0.04955554,131.16,131.14,0.05285775]
[1740738195495,16.65000883,131.28,131.14,0.05285775]
[1740738195690,12.78,131.25,131.09,5.7945]
[1740738195891,7.6242,131.23,131.1,1.52555301]
[1740738196593,12.78,131.25,131.17,7.6269]
[1740738196793,0.05679838,131.18,131.17,7.6269]
[1740738196995,0.04972476,131.22,131.21,7.6249]
[1740738197193,5.6006,131.28,131.1,1.52555301]
[1740738197389,0.05391584,131.23,131.2,0.04940618]
[1740738197591,5.6006,131.28,131.2,0.04940618]
[1740738197893,0.04959897,131.23,131.2,0.0480663]
[1740738198093,0.04959897,131.23,131.21,7.6244]
[1740738198399,7.6222,131.26,131.21,7.6244]
[1740738198699,0.04813371,131.23,131.2,7.6256]
[1740738199000,0.04813371,131.23,131.22,0.05828686]
[1740738199196,9.5182,131.28,131.23,7.6236]
[1740738199397,0.05243906,131.24,131.23,7.6236]
[1740738199598,1.8969,131.28,131.23,7.6236]
[1740738199797,0.04919839,131.25,131.23,7.6236]
[1740738200392,0.04919839,131.25,131.24,7.6232]
[1740738206200,0.04919839,131.25,131.22,0.04800383]
[1740738206401,0.04919839,131.25,131.23,7.6237]
[1740738209604,0.04919839,131.25,131.22,0.04800383]
[1740738210001,7.67219839,131.25,131.22,0.04800383]
[1740738210303,0.04919839,131.25,131.22,0.04800383]
[1740738210512,3.7552,131.24,131.22,0.04800383]
[1740738210812,7.6238,131.23,131.22,0.04800383]
[1740738211014,3.7552,131.24,131.22,0.04800383]
[1740738211513,11.3785,131.24,131.22,0.04800383]
[1740738213604,0.04919839,131.25,131.22,0.04800383]
[1740738214215,0.04919839,131.25,131.22,7.67200383]
[1740738214413,0.04919839,131.25,131.22,0.04800383]
[1740738218309,0.04919839,131.25,131.22,7.67230383]
[1740738218514,0.04919839,131.25,131.22,0.04800383]
[1740738218915,0.04919839,131.25,131.23,7.6235]
[1740738219217,0.04919839,131.25,131.22,0.04800383]
[1740738221122,7.67229839,131.25,131.22,0.04800383]
[1740738221420,0.04919839,131.25,131.22,0.04800383]
[1740738221623,7.67209839,131.25,131.22,0.04800383]
[1740738222117,0.04919839,131.25,131.22,0.04800383]
[1740738223022,0.04919839,131.25,131.22,7.67220383]
[1740738223822,0.04919839,131.25,131.22,0.04800383]
[1740738224620,7.6232,131.24,131.22,0.04800383]
[1740738225126,0.04919839,131.25,131.22,0.04800383]
[1740738227425,7.67189839,131.25,131.22,0.04800383]
[1740738227620,0.04919839,131.25,131.22,0.04800383]
[1740738230522,7.6238,131.23,131.22,0.04800383]
[1740738231118,0.04919839,131.25,131.22,0.04800383]
[1740738232626,0.04919839,131.25,131.23,7.6238]
[1740738234026,0.04919839,131.25,131.22,0.04800383]
[1740738235829,0.04919839,131.25,131.22,7.67230383]
[1740738236430,0.04919839,131.25,131.22,0.04800383]
[1740738237126,7.67209839,131.25,131.22,0.04800383]
[1740738240535,0.04919839,131.25,131.22,0.04800383]
[1740738241539,0.04919839,131.25,131.23,7.6238]
[1740738242037,0.04919839,131.25,131.22,0.04800383]
[1740738243936,7.6232,131.24,131.22,0.04800383]
[1740738244637,0.04919839,131.25,131.22,0.04800383]
[1740738244837,7.6232,131.24,131.22,0.04800383]
[1740738245239,0.04919839,131.25,131.22,0.04800383]
[1740738245435,7.6238,131.23,131.22,0.04800383]
[1740738246144,7.6234,131.24,131.22,0.04800383]
[1740738246345,0.04919839,131.25,131.22,0.04800383]
[1740738247240,7.67189839,131.25,131.22,0.04800383]
[1740738249444,0.04919839,131.25,131.22,0.04800383]
[1740738251940,7.6236,131.24,131.22,0.04800383]
[1740738252144,0.04919839,131.25,131.22,0.04800383]
[1740738253546,7.6238,131.23,131.22,0.04800383]
[1740738254541,0.04919839,131.25,131.22,0.04800383]
[1740738255053,7.67219839,131.25,131.22,0.04800383]
[1740738256454,0.04919839,131.25,131.22,0.04800383]
[1740738258549,7.6236,131.24,131.22,0.04800383]
[1740738259160,0.04919839,131.25,131.22,0.04800383]
[1740738259459,7.6232,131.24,131.22,0.04800383]
[1740738260258,7.6238,131.23,131.22,0.04800383]
[1740738262863,0.04919839,131.25,131.22,0.04800383]
[1740738264161,7.67219839,131.25,131.22,0.04800383]
[1740738264562,0.04919839,131.25,131.22,0.04800383]
[1740738265563,7.6232,131.24,131.22,0.04800383]
[1740738265756,0.04919839,131.25,131.22,0.04800383]
[1740738266265,7.6232,131.24,131.22,0.04800383]
[1740738266656,0.04919839,131.25,131.22,0.04800383]
[1740738266861,7.6232,131.24,131.22,0.04800383]
[1740738267368,7.6238,131.23,131.22,0.04800383]
[1740738268966,9.5438,131.24,131.22,0.04800383]
[1740738269557,1.9203,131.24,131.22,0.04800383]
[1740738270565,7.6238,131.23,131.22,0.04800383]
[1740738279169,0.04919839,131.25,131.22,0.04800383]
[1740738280270,7.67189839,131.25,131.22,0.04800383]
[1740738280768,0.04919839,131.25,131.22,0.04800383]
[1740738282372,0.04919839,131.25,131.22,7.67230383]
[1740738282568,0.04919839,131.25,131.22,0.04800383]
[1740738282970,0.04919839,131.25,131.23,7.6235]
[1740738289479,0.04919839,131.25,131.22,7.67230383]
[1740738297878,0.04919839,131.25,131.22,0.04800383]
[1740738298080,0.04919839,131.25,131.24,7.6232]
[1740738298277,0.04919839,131.25,131.23,5.6483]
[1740738299476,0.04919839,131.25,131.23,13.2721]
[1740738300480,0.04919839,131.25,131.24,7.6232]